Cogmind - Beta 17 @@@ ROGUE MODE // 2026.07.08 @ 19:27:18 Player: aperiodic Result: Destroyed by Q4-W1S(R) with Subdweller Machine Gun Performance ------------- Evolutions (0) 0 Regions Visited (2) 400 Robots Destroyed (17) 85 Value Destroyed (451) 451 Prototype IDs (14) 280 Alien Tech Used (0) 0 Bonus (0) 0 TOTAL SCORE: 1216 Bonus ------- None Cogmind --------- Core Integrity 0/250 Matter 233/300 Energy 100/100 System Corruption 0% Temperature Cool (0) Movement Treading (240) Ox1 Location -10/Subcaves Parts ------- > --- POWER (1) -------- (None) > --- PROPULSION (2) --- Light Treads Wheel > --- UTILITY (2) ------ Large Storage Unit Seismic Detector > --- WEAPON (2) ------- Subdweller Machine Gun Subdweller Machine Gun > --- INVENTORY (15) --- Subdweller Power Source Compact Wheel Subdweller Monowheel Subdweller Monowheel Scrap Shield Self-contained Transmogrifier Riot Gun Subdweller Beam Cannon Powered Cannon Battle Rifle Subdweller Machine Gun Ripper Scrap Shield Fragment (34) Peak State ------------ > --- POWER ------------ Light Ion Engine > --- PROPULSION ------- Wheel Compact Wheel > --- UTILITY ---------- Large Storage Unit Seismic Detector > --- WEAPON ----------- Subdweller Machine Gun Ripper > --- INVENTORY -------- Subdweller Power Source Light Treads Subdweller Monowheel Subdweller Monowheel Self-contained Transmogrifier Riot Gun Subdweller Laser Subdweller Laser Subdweller Beam Cannon Powered Cannon Battle Rifle Subdweller Machine Gun Subdweller Machine Gun Scrap Shield Fragment [Rating: 15] Favorites ----------- Power Light Ion Engine Engine Light Ion Engine Propulsion Compact Wheel Treads Light Treads Wheel Compact Wheel Utility Seismic Detector Device Seismic Detector Storage Large Storage Unit Weapon Subdweller Machine Gun Energy Gun Medium Laser Energy Cannon Subdweller Beam Cannon Ballistic Gun Subdweller Machine Gun Special Weapon Mining Laser Slashing Weapon Ripper Build | -11 -10 -10 ------- Run | Yrd Mat Sub Slots Evolved . | . . . Power . | . . . Propulsion . | . . . Utility . | . . . Weapon . | . . . Parts Attached 20 | 8 3 9 Power 3 | 2 . 1 Engine 3 | 2 . 1 Core . | . . . Reactor . | . . . Propulsion 5 | 2 1 2 Treads 1 | . 1 . Leg . | . . . Wheel 4 | 2 . 2 Hover . | . . . Flight . | . . . Utility 3 | 2 1 . Device 1 | 1 . . Storage 2 | 1 1 . Processor . | . . . Hackware . | . . . Protection . | . . . Artifact . | . . . Weapon 9 | 2 1 6 Energy Gun 2 | 2 . . Energy Cannon 1 | . . 1 Ballistic Gun 4 | . . 4 Ballistic Cannon . | . . . Launcher . | . . . Special Weapon 1 | . 1 . Impact Weapon . | . . . Slashing Weapon 1 | . . 1 Piercing Weapon . | . . . Special Melee Weapon . | . . . Unidentified Prototypes . | . . . Parts Lost 4 | . . 4 Power 2 | . . 2 Propulsion 2 | . . 2 Utility . | . . . Weapon . | . . . Highest Loss Streak 1 | . . 1 To Critical Strikes . | . . . Average Backups 11 | 3 6 12 Power . | . 1 1 Propulsion 2 | 1 2 2 Utility 1 | . 1 1 Weapon 6 | 1 2 6 Tool/Special . | . . . Unused Backups 18 | 1 . 17 Power 2 | . . 2 Propulsion 6 | 1 . 5 Utility 2 | . . 2 Weapon 7 | . . 7 Tool/Special 1 | . . 1 Average Slot Usage (%) 99 | . 100 99 Engine 13 | . 14 13 Treads 1 | . 8 1 Wheel 26 | . 19 26 Device 14 | . 14 14 Storage 14 | . 14 14 Energy Gun 4 | . 23 3 Ballistic Gun 21 | . . 22 Peak Build Rating 15 | 7 7 15 Average Rating 12 | 5 7 12 On Entrance 4 | . 7 7 Avg Prop Armor Cover (%) 5 | . 3 6 Naked Turns . | . . . Heaviest Build 36 | 15 30 36 Greatest Support 32 | 26 26 32 Greatest Overweight (x) 3 | 1 1 3 Average Overweight (x) . | . . . Largest Inventory Capacity 15 | 8 15 15 Average Capacity 14 | 7 14 15 Most Carried 15 | 5 7 15 Average Carried 13 | 3 6 14 Final Capacity 15 | 8 15 15 Final Carried 15 | 5 7 15 Class Distribution -------------------- 96% | Mutant 3% | Scavenger-Mutant Dominant Class ---------------- Mutant | -10/Materials Mutant | -10/Subcaves Resources | -11 -10 -10 ----------- Run | Yrd Mat Sub Matter Collected 695 | 280 20 395 Remotely . | . . . Salvage Created 635 | 115 46 474 Parts 52 | 12 3 37 Haulers Intercepted . | . . . Recyclers Shooed . | . . . Parts Field Recycled . | . . . Retrieved Matter . | . . . Parts Self-Destructed 23 | . . 23 Prevented . | . . . Parts Restored . | . . . Kills | -11 -10 -10 ------- Run | Yrd Mat Sub Combat Hostiles Destroyed 13 | . 1 12 Guns 13 | . 1 12 Classes Destroyed 5 | 2 1 2 Tunneler 3 | 3 . . Recycler 1 | 1 . . Swarmer 3 | . . 3 Grunt 1 | . 1 . Subdweller 9 | . . 9 Best Kill Streak 3 | 1 1 3 Combat Bots Only 3 | . 1 3 Max Kills in Single Turn 1 | 1 1 1 Gunslinging . | . . . Exploded . | . . . Melee . | . . . Uniques/NPCs Destroyed . | . . . Combat | -11 -10 -10 -------- Run | Yrd Mat Sub Hostile Shots Fired 84 | . 2 82 Missed 22 | . 1 21 Hits 62 | . 1 61 Projectile 62 | . 1 61 Critical Strikes 3 | . . 3 Damage Taken 910 | . 11 899 Core 271 | . . 271 Absorbed by Shields . | . . . Core Remaining (%) 100 | 100 . . Volleys Fired 98 | 10 9 79 Largest 2 | 2 2 2 Hottest 100 | 100 100 100 Shots Fired 162 | 20 11 131 Gun 132 | 20 4 108 Cannon 20 | . . 20 Launcher . | . . . Special 10 | . 7 3 Kinetic 76 | . . 76 Thermal 86 | 20 11 55 Explosive . | . . . Electromagnetic . | . . . Robot Hit Streak 34 | 6 7 34 Robot Miss Streak 4 | 3 . 4 Penetration Max . | . . . Secondary Targets 1 | . . 1 Max Gunslinging Chain 1 | . . 1 Shots Hit Robots 89 | 12 4 73 Core Hits 33 | 5 2 26 Critical Kills . | . . . Critical Parts Destroyed . | . . . Critical Strikes 2 | . . 2 Burn 2 | . . 2 Melee Attacks 2 | . . 2 Impact . | . . . Slashing 2 | . . 2 Piercing . | . . . Sneak Attacks . | . . . Combat Hostiles . | . . . Follow-up Attacks . | . . . Damage Inflicted 1533 | 152 50 1331 Guns 1533 | 152 50 1331 Cannons . | . . . Explosions . | . . . Melee . | . . . Ramming . | . . . Kinetic 970 | . . 970 Thermal 563 | 152 50 361 Explosive . | . . . Electromagnetic . | . . . Impact . | . . . Slashing . | . . . Piercing . | . . . Highest Corruption . | . . . Average Corruption . | . . . Corruption Purged . | . . . Corruption Blocked . | . . . Overload Shots . | . . . Overflow Damage . | . . . Projectiles . | . . . Explosions . | . . . Melee . | . . . Knockbacks . | . . . Impact . | . . . Kinetic . | . . . Secondary . | . . . Self-Inflicted Damage . | . . . Shots . | . . . Rammed . | . . . Targets Rammed . | . . . Kicked . | . . . Crushed . | . . . Highest Temperature 156 | 156 84 21 Average Temperature 46 | 60 33 15 Received Heat Transfer 126 | . 6 120 Siege Activations . | . . . Martial Activations . | . . . Shielding Activations . | . . . Robots Disrupted . | . . . Combat Hostiles . | . . . Robots Corrupted . | . . . Combat Hostiles . | . . . Parts Fried . | . . . Impact Corruptions . | . . . Robots Melted . | . . . Combat Hostiles . | . . . Parts Melted 1 | . . 1 Heat Transferred 1813 | 444 148 1221 Parts Sabotaged . | . . . Parts Stolen . | . . . Parts Stripped . | . . . Power Chain Reactions . | . . . Alert | -11 -10 -10 ------- Run | Yrd Mat Sub Maximum Alert Level . | . . . Low Security (%) 100 | 100 100 . Level 1 . | . . . Level 2 . | . . . Level 3 . | . . . Level 4 . | . . . Level 5 . | . . . High Security . | . . . Max Security . | . . . Peak Influence 16 | 5 16 . Initial . | . . . Average 2 | 1 3 . Influence Increases 165 | 20 40 105 Destroy 0b10 Robot/C 80 | . 20 60 Destroy 0b10 Robot/NC 20 | 20 . . Destroy Structure 5 | . 5 . Lose Combat Pursuer 60 | . 15 45 Influence Decreases 73 | 20 40 13 Time Decay 63 | 20 40 3 Lost Part 10 | . . 10 Squads Dispatched . | . . . Investigation . | . . . Extermination . | . . . Reinforcement . | . . . Assault . | . . . Garrison . | . . . Intercept . | . . . Searches Triggered . | . . . Construction Impeded . | . . . Haulers Reinforced . | . . . Active Scanning Responses . | . . . Cargo Convoy Interrupts . | . . . Stealth | -11 -10 -10 --------- Run | Yrd Mat Sub Distress Signals . | . . . Communications Jammed . | . . . Distress Signals . | . . . Times Spotted 18 | . 2 16 Peak Tracking Total 6 | . 2 6 Tactical Retreats 2 | . 1 1 Traps | -11 -10 -10 ------- Run | Yrd Mat Sub Traps Triggered 1 | . . 1 Indirectly . | . . . Trap Hack Attempts . | . . . Triggered . | . . . Disarmed . | . . . Reprogrammed . | . . . Reused . | . . . Traps Extracted . | . . . Installed . | . . . Triggered . | . . . Machines | -11 -10 -10 ---------- Run | Yrd Mat Sub Machines Disabled 1 | . . 1 Max in Single Turn 1 | . . 1 Machines Repaired . | . . . Machines Dismantled . | . . . Machines Sabotaged . | . . . Overloaded Fab Kills . | . . . Hacking | -11 -10 -10 --------- Run | Yrd Mat Sub Machines Accessed 3 | . . 3 Terminals . | . . . Fabricators . | . . . Repair Stations . | . . . Recycling Units . | . . . Scanalyzers . | . . . Garrison Access . | . . . Total Hacks 3 | . . 3 Successful 3 | . . 3 Failed . | . . . Catastrophic . | . . . Database Lockouts . | . . . Manual . | . . . Terminals . | . . . Fabricators . | . . . Repair Stations . | . . . Recycling Units . | . . . Scanalyzers . | . . . Garrison Access . | . . . Terminal Hacks 3 | . . 3 Record 1 | . . 1 Open Door 1 | . . 1 Proto ID Catalog 1 | . . 1 Fabricator Hacks . | . . . Repair Station Hacks . | . . . Recycling Unit Hacks . | . . . Scanalyzer . | . . . Garrison Access Hacks . | . . . Unauthorized Hacks . | . . . Terminals . | . . . Fabricators . | . . . Repair Stations . | . . . Recycling Units . | . . . Scanalyzers . | . . . Garrison Access . | . . . Data Cores Recovered . | . . . Used . | . . . Hacking Detections . | . . . Full Trace Events . | . . . Feedback Events . | . . . Feedback Blocked . | . . . Robot Schematics Acquired . | . . . Robots Built . | . . . Authchips . | . . . Time . | . . . Total Robot Build Rating . | . . . Part Schematics Acquired . | . . . Parts Built . | . . . Authchips . | . . . Time . | . . . Total Part Build Rating . | . . . Part Studies Acquired . | . . . Parts Repaired . | . . . Time . | . . . Parts Recycled . | . . . Recycled Matter . | . . . Retrieved Matter . | . . . Retrieved Components . | . . . Parts Scanalyzed . | . . . Part Schematics Acquired . | . . . Parts Damaged . | . . . Bothacking | -11 -10 -10 ------------ Run | Yrd Mat Sub Used RIF Installer . | . . . Robots Hacked . | . . . Non-combat . | . . . Combat . | . . . Robot Hacks Applied . | . . . Relay Couplers Released . | . . . Fabnet Peak Effective % . | . . . Robots Rewired . | . . . Allies Hacked . | . . . Hacks Repelled . | . . . Allies | -11 -10 -10 -------- Run | Yrd Mat Sub Total Allies . | . . . Largest Group . | . . . Highest-Rated Group . | . . . Highest-Rated Ally . | . . . Total Orders . | . . . Ally Attacks . | . . . Total Damage . | . . . Kills . | . . . Allies Corrupted . | . . . Allies Melted . | . . . Intel | -11 -10 -10 ------- Run | Yrd Mat Sub Active Infowar (turns) 4259 | 28 188 4043 Seismic 4259 | 28 188 4043 Robot Analysis Total . | . . . Derelict Logs Recovered 2 | . . 2 Drone Launches . | . . . Drone Recoveries . | . . . Exploration | -11 -10 -10 ------------- Run | Yrd Mat Sub Turns Passed 4351 | 120 188 4043 Spaces Moved 2309 | 80 80 2149 Core 6 | 6 . . Treads 124 | . 30 94 Legs . | . . . Wheels 2179 | 74 50 2055 Hover . | . . . Flight . | . . . Fastest Speed 50 | 50 90 90 Average Speed 110 | 86 151 110 Slowest Speed 240 | 95 240 240 Overloaded Moves . | . . . Propulsion Burnouts . | . . . Robots Hopped . | . . . Potential Cave-ins . | . . . Cave-ins Triggered . | . . . Exploration Rate (%) 31 | 6 16 73 Regions Visited 2 Branch Regions 1 Pre-discovered Areas 3 | . . 3 Known Exits Taken . | . . . Unknown Exits Taken 2 | 1 1 . Scrap Searched 6 | . . 6 Spaces Dug 13 | . 6 7 Terrain Destroyed 21 | . 7 14 Melee . | . . . Projectile 21 | . 7 14 AOE . | . . . Terrain Rammed . | . . . Walls Destroyed . | . . . Machines Disabled . | . . . Actions | -11 -10 -10 --------- Run | Yrd Mat Sub Total 3905 | 107 119 3679 Wait 1412 | 4 25 1383 Move 2307 | 79 79 2149 Hop . | . . . Pick Up 28 | 5 1 22 Fast Attach 8 | 7 . 1 Attach 2 | . . 2 Detach . | . . . Swap 32 | 1 5 26 Drop 16 | 1 . 15 Fire 98 | 10 9 79 Melee 2 | . . 2 Ram . | . . . Kick . | . . . Crush . | . . . Escape Stasis . | . . . Rewire . | . . . Trap . | . . . Miscellaneous . | . . . Route ------- -11/Scrapyard -10/Materials -10/Subcaves (discovered 1 exit: [*Mat]) History --------- Turn | Location | Event 2 | -11/Scrapyard | Met Revision 17 23 | -11/Scrapyard | Discovered new exit (range 15) 121 | -11/Scrapyard | Entered Materials 289 | -10/Materials | Discovered new exit (range 5) 309 | -10/Materials | Entered Subcaves 310 | -10/Subcaves | Approached by a straggling Scientist 312 | -10/Subcaves | Learned location of Mines (-10) 329 | -10/Subcaves | Build established: Mutant 347 | -10/Subcaves | Disturbed a concealed Subdweller 488 | -10/Subcaves | Learned location of Zion (-7) 757 | -10/Subcaves | Visited 4L-MR0's lab 765 | -10/Subcaves | Found Prototype Device 775 | -10/Subcaves | Found Powered Cannon 1146 | -10/Subcaves | Core integrity fell below 50% 1335 | -10/Subcaves | Met a Zionite searching for "candidates" 2706 | -10/Subcaves | Discovered new exit (range 10) 3323 | -10/Subcaves | Shifting Twisted Machinery released Ripper 3405 | -10/Subcaves | Shifting Twisted Machinery released Battle Rifle 3494 | -10/Subcaves | Shifting Twisted Machinery released Sub. Laser 3499 | -10/Subcaves | Shifting Twisted Machinery released Flamer 4328 | -10/Subcaves | Core integrity fell below 20% 4352 | -10/Subcaves | Destroyed by Q4-W1S(R) with Subdweller Machine Gun Last Messages --------------- 03962_ Acquired 5 matter. 03969_ Acquired 2 matter. 04203_ Sub. Beam Cannon shoots sparks and powers down. 04320_ S-10 Pest destroyed. 04326_ Flight Unit fries itself beyond repair. 04327_ Lgt. Ion Engine destroyed. 04328_ Flight Unit fries itself beyond repair. 04333_ S-10 Pest destroyed. 04333_ Switching to secondary target: S-10 Pest. 04338_ Lgt. Assault Rifle fries itself beyond repair. 04339_ S-10 Pest destroyed. 04342_ Lgt. Ion Engine fries itself beyond repair. 04347_ Sub. Machine Gun shoots sparks and powers down. 04351_ Lgt. Assault Rifle fries itself beyond repair. Map ----- +----------------------------------------------------+ | ?????????????????????????????????????????????????? | | ?????????????????????????????????????????????????? | | ?????????????????????????????????????????????????? | | ?????????????????????????????????????????????????? | | ?????????????????????????????????????????????????? | | ?????????????????????????????????????????????????? | | ?????????????????????????????????????????????????? | | ?????????????????????????????????????????????????? | | ?????????????????????????????????????????????????? | | ?????????????????????????????????????????????????? | | ?????????????????????????????????????????????????? | | ?????????????????????????????????????????????????? | | ?????????????????????????????#???????????????????? | | ??????????????###???????????# ???????????????????? | | ??????????????# #????##??? ????????????????????? | | ??????????????? #???? ??? ????????????????????? | | ???????????????# #??? ??? ?????????????????????? | | ????????????#### ??? ### ?????????????????????? | | ????????????# ?? #?????????????????????? | | ????????????# ??# ##?????? ???????????? | | ????????????? ?## ?????? ????????????? | | ??????????????? ## ?????? ?????????????? | | ?????????????????# #????? #?????????????? | | ???????????????### #???? ##????????????? | | ??????????????## #???? ### ?????????? | | ???????# # # % @#??? ?????????? | | ??????? R %%%####?## ????????? | | ??????? R *=# ### ????????? | | ?????????# ???????? | | ?????????####### ???????? | | ???????????????# ###### ???????? | | ???????????????# #????## ???????? | | ???????????????# #####?# ???????? | | ???????????????#### #?# ###### ????????? | | ???????????????????# ### ###??????????????? | | ???????????????????# #????????????????? | | ???????????????????# ##????????????????? | | ???????????????????# ##?????????????????? | | ???????????????????# ### ##??????????????????? | | ?????????????????### #??##???????????????????? | | ??????????????#### ###?????????????????????? | | ??????????????# #????????#####???????## | | ??????????????## #???????## ##??????# | | ???????????????## ##?????##"# #????### | | ?????#??????????## #???# ## #???## | | ?????? ??????????# # #??###"# ##??# | | ??????# ?????##??# # #???# ### ##?# | | #?????# #???# #??# ####### #??# #### ### | | ##?##### ### # ??## #?????? "### " ## | | #?# ### # ## #### ##?????? ??#### ### | +----------------------------------------------------+ Best States ------------- Heat Dissipation 25 Energy Generation 15 Energy Capacity 250 Matter Stores 300 Matter Capacity 300 Sight Range 16 Terrain Scan Density 10 Evasion (%) 44 Recoil Reduction 1 Item Schematics ----------------- None Robot Schematics ------------------ None Fabricated ------------ Nothing Repaired ---------- Nothing Studied --------- None Alien Tech Used ----------------- None Achievements -------------- None Challenges ------------ None Game ------ Seed ArmorEnhancedTransmogrifier Manual? 0 Play Time 00:29:08 Cumulative 712.7 hours Start 2026.07.08 @ 18:08:48 End 2026.07.08 @ 19:27:18 Sessions 4 Manual Loads 0 Difficulty Rogue Special Mode None Game No. 239 Rogue 235 Adventurer 4 Explorer 0 Win Type - Total 21 Types 9/2/6/0/0/0/2/2/0/0 Lore% 71 Gallery% 73 Achievement% 54 Wizard Run 0 Options --------- Layout 1 ASCII 0 Keyboard 0 Movement Arrows Keybinds 0 Fullscreen 1 Font 40/SmallcapsGlow Map View 50x40 Zoom Use 0% Tactical HUD 1 Map Filters NONE Filters NONE Steam 1 RUN: 35e9f5f3-c8bc-4f74-a9ac-917ec9b3ef04